Cogmind - Beta 13 @@@ ROGUE MODE // 2024.06.06 @ 00:11:35 Player: paplal Result: Destroyed by Y-45 Defender with Beam Rifle Performance ------------- Evolutions (1) 500 Regions Visited (2) 400 Robots Destroyed (34) 170 Value Destroyed (740) 740 Prototype IDs (2) 40 Alien Tech Used (0) 0 Bonus (0) 0 TOTAL SCORE: 1850 Bonus ------- None Cogmind --------- Core Integrity 0/400 Matter 210/300 Energy 66/100 System Corruption 0% Temperature Cool (9) Movement Core (150) Ox2 Location -9/Materials Parts ------- > --- POWER (1) -------- (None) > --- PROPULSION (3) --- (None) > --- UTILITY (3) ------ Small Storage Unit ECM Suite > --- WEAPON (2) ------- (None) > --- INVENTORY (8) ---- Flight Unit Flight Unit Flight Unit Faulty Improved Flight Unit Heat Sink Improved Heat Sink Peak State ------------ > --- POWER ------------ Light Nuclear Core > --- PROPULSION ------- Aluminum Leg Aluminum Leg Improved Aluminum Leg > --- UTILITY ---------- Small Storage Unit ECM Suite > --- WEAPON ----------- Particle Gun Autogun > --- INVENTORY -------- Improved Ion Engine Flight Unit Flight Unit Flight Unit Heat Sink Improved Heat Sink Grenade Launcher Plasma Cutter [Rating: 14] Favorites ----------- Power Light Ion Engine Engine Light Ion Engine Power Core Light Nuclear Core Propulsion Aluminum Leg Leg Aluminum Leg Flight Unit Flight Unit Utility Small Storage Unit Device ECM Suite Storage Small Storage Unit Protection Core Shielding Weapon Light Assault Rifle Energy Gun Particle Gun Ballistic Gun Light Assault Rifle Launcher Grenade Launcher Special Weapon Plasma Cutter Build | -11 -10 -9 ------- Run | Yrd Mat Mat Slots Evolved 2 | . . 2 Power . | . . . Propulsion 1 | . . 1 Utility 1 | . . 1 Weapon . | . . . Parts Attached 37 | 3 8 26 Power 4 | . 1 3 Engine 3 | . 1 2 Core 1 | . . 1 Reactor . | . . . Propulsion 12 | . 2 10 Treads . | . . . Leg 9 | . 2 7 Wheel . | . . . Hover . | . . . Flight 3 | . . 3 Utility 3 | 1 1 1 Device 1 | . 1 . Storage 1 | 1 . . Processor . | . . . Hackware . | . . . Protection 1 | . . 1 Artifact . | . . . Weapon 18 | 2 4 12 Energy Gun 4 | 1 1 2 Energy Cannon . | . . . Ballistic Gun 4 | 1 1 2 Ballistic Cannon . | . . . Launcher 7 | . 2 5 Special Weapon 3 | . . 3 Impact Weapon . | . . . Slashing Weapon . | . . . Piercing Weapon . | . . . Special Melee Weapon . | . . . Unidentified Prototypes . | . . . Parts Lost 19 | . . 19 Power 3 | . . 3 Propulsion 8 | . . 8 Utility 1 | . . 1 Weapon 7 | . . 7 Highest Loss Streak 8 | . . 8 To Critical Strikes . | . . . Average Slot Usage (%) 83 | . 89 79 Engine 8 | . 10 7 Core 2 | . . 3 Leg 23 | . 26 22 Flight 1 | . . 1 Device 10 | . 9 11 Storage 12 | . 14 11 Protection 2 | . . 4 Energy Gun 8 | . 13 5 Ballistic Gun 9 | . 13 6 Launcher 3 | . . 6 Naked Turns . | . . . Heaviest Build 19 | 8 16 19 Greatest Support 33 | 3 20 33 Greatest Overweight (x) 4 | 2 1 4 Average Overweight (x) . | . . . Largest Inventory Capacity 8 | 8 8 8 Average Capacity 7 | 6 8 8 Most Carried 8 | 5 7 8 Average Carried 5 | 3 4 6 Final Capacity 8 | 8 8 8 Final Carried 7 | 4 7 6 Class Distribution -------------------- 75% | Mutant 24% | Scavenger-Mutant Dominant Class ---------------- Mutant | -10/Materials Mutant | -9/Materials Resources | -11 -10 -9 ----------- Run | Yrd Mat Mat Matter Collected 730 | 161 214 355 Remotely . | . . . Salvage Created 971 | . 513 458 Parts 71 | . 23 48 Haulers Intercepted . | . . . Recyclers Shooed 3 | . 2 1 Parts Field Recycled . | . . . Retrieved Matter . | . . . Parts Self-Destructed . | . . . Prevented . | . . . Kills | -11 -10 -9 ------- Run | Yrd Mat Mat Combat Hostiles Destroyed 25 | . 10 15 Guns 11 | . 5 6 Cannons 1 | . . 1 AOE 12 | . 4 8 Classes Destroyed 8 | . 5 3 Worker 2 | . 2 . Builder 3 | . . 3 Recycler 2 | . 2 . Watcher 2 | . 1 1 Swarmer 10 | . 3 7 Grunt 11 | . 7 4 Duelist 1 | . . 1 Sentry 3 | . . 3 Best Kill Streak 9 | . 5 9 Combat Bots Only 4 | . 3 4 Max Kills in Single Turn 4 | . 4 4 Gunslinging . | . . . Exploded 4 | . 2 4 Melee . | . . . Uniques/NPCs Destroyed . | . . . Combat | -11 -10 -9 -------- Run | Yrd Mat Mat Hostile Shots Fired 203 | . 39 164 Missed 53 | . 14 39 Damage Taken 2071 | . 358 1713 Core 492 | . 91 401 Absorbed by Shields . | . . . Redirected to Shielding 39 | . . 39 Core Remaining (%) 81 | 100 63 . Volleys Fired 98 | . 37 61 Largest 2 | . 2 2 Hottest 95 | . 95 95 Shots Fired 166 | . 74 92 Gun 143 | . 71 72 Cannon . | . . . Launcher 16 | . 3 13 Special 7 | . . 7 Kinetic 89 | . 35 54 Thermal 61 | . 36 25 Explosive 16 | . 3 13 Electromagnetic . | . . . Robot Hit Streak 11 | . 6 11 Robot Miss Streak 3 | . 3 2 Penetration Max . | . . . Secondary Targets 2 | . . 2 Max Gunslinging Chain 1 | . . 1 Shots Hit Robots 121 | . 51 70 Core Hits 59 | . 27 32 Critical Kills . | . . . Critical Parts Destroyed . | . . . Critical Strikes 5 | . 5 . Burn 5 | . 5 . Melee Attacks . | . . . Impact . | . . . Slashing . | . . . Piercing . | . . . Sneak Attacks . | . . . Combat Hostiles . | . . . Follow-up Attacks . | . . . Damage Inflicted 2281 | . 912 1369 Guns 1261 | . 537 724 Cannons . | . . . Explosions 978 | . 375 603 Melee . | . . . Ramming 5 | . . 5 Kinetic 779 | . 186 593 Thermal 519 | . 351 168 Explosive 978 | . 375 603 Electromagnetic . | . . . Impact . | . . . Slashing . | . . . Piercing . | . . . Highest Corruption . | . . . Average Corruption . | . . . Corruption Purged . | . . . Corruption Blocked . | . . . Overload Shots . | . . . Overflow Damage 20 | . . 20 Projectiles . | . . . Explosions 20 | . . 20 Melee . | . . . Knockbacks . | . . . Impact . | . . . Kinetic . | . . . Secondary . | . . . Self-Inflicted Damage 227 | . 79 148 Shots 9 | . 3 6 Rammed . | . . . Targets Rammed 3 | . . 3 Kicked 3 | . . 3 Crushed . | . . . Highest Temperature 174 | . 174 129 Average Temperature 39 | . 45 31 Received Heat Transfer 684 | . 126 558 Siege Activations . | . . . Robots Corrupted . | . . . Combat Hostiles . | . . . Parts Fried . | . . . Impact Corruptions . | . . . Robots Melted 1 | . 1 . Combat Hostiles 1 | . 1 . Parts Melted 1 | . 1 . Heat Transferred 1804 | . 1369 435 Parts Sabotaged . | . . . Parts Stolen . | . . . Parts Stripped . | . . . Power Chain Reactions . | . . . Alert | -11 -10 -9 ------- Run | Yrd Mat Mat Peak Influence 379 | . 275 379 Initial 70 | . . 70 Average 201 | . 148 250 Maximum Alert Level 1 | . 1 1 Low Security (%) 51 | 100 65 39 Level 1 48 | . 34 60 Level 2 . | . . . Level 3 . | . . . Level 4 . | . . . Level 5 . | . . . High Security . | . . . Max Security . | . . . Squads Dispatched 4 | . 2 2 Investigation 3 | . 2 1 Extermination . | . . . Reinforcement 1 | . . 1 Assault . | . . . Garrison . | . . . Intercept . | . . . Searches Triggered . | . . . Construction Impeded 1 | . . 1 Haulers Reinforced . | . . . Active Scanning Responses . | . . . Cargo Convoy Interrupts . | . . . Stealth | -11 -10 -9 --------- Run | Yrd Mat Mat Distress Signals 5 | . 2 3 Communications Jammed . | . . . Distress Signals . | . . . Times Spotted 53 | . 20 33 Peak Tracking Total 7 | . 5 7 Tactical Retreats 10 | . 3 7 Traps | -11 -10 -9 ------- Run | Yrd Mat Mat Traps Triggered 1 | . . 1 Indirectly . | . . . Trap Hack Attempts . | . . . Triggered . | . . . Disarmed 4 | . 4 . Reprogrammed . | . . . Reused . | . . . Traps Extracted . | . . . Installed . | . . . Triggered . | . . . Machines | -11 -10 -9 ---------- Run | Yrd Mat Mat Machines Disabled 1 | . 1 . Max in Single Turn 1 | . 1 . Machines Repaired . | . . . Machines Dismantled . | . . . Machines Sabotaged . | . . . Overloaded Fab Kills . | . . . Hacking | -11 -10 -9 --------- Run | Yrd Mat Mat Machines Accessed 8 | . 5 3 Terminals 6 | . 4 2 Fabricators . | . . . Repair Stations . | . . . Recycling Units 2 | . 1 1 Scanalyzers . | . . . Garrison Access . | . . . Total Hacks 19 | . 13 6 Successful 7 | . 3 4 Failed 12 | . 10 2 Catastrophic 6 | . 6 . Database Lockouts . | . . . Manual . | . . . Terminals 16 | . 11 5 Fabricators . | . . . Repair Stations . | . . . Recycling Units 3 | . 2 1 Scanalyzers . | . . . Garrison Access . | . . . Terminal Hacks 6 | . 3 3 Prototype ID Bank 1 | . . 1 Alert Level 1 | . 1 . Disarm Traps 1 | . 1 . Reinforcement Status 1 | . . 1 Hauler Manifests 1 | . . 1 Registered Components 1 | . 1 . Fabricator Hacks . | . . . Repair Station Hacks . | . . . Recycling Unit Hacks 1 | . . 1 Retrieve Components 1 | . . 1 Scanalyzer . | . . . Garrison Access Hacks . | . . . Unauthorized Hacks . | . . . Terminals . | . . . Fabricators . | . . . Repair Stations . | . . . Recycling Units . | . . . Scanalyzers . | . . . Garrison Access . | . . . Data Cores Recovered . | . . . Used . | . . . Hacking Detections 5 | . 5 . Full Trace Events 4 | . 4 . Feedback Events . | . . . Feedback Blocked . | . . . Robot Schematics Acquired . | . . . Robots Built . | . . . Authchips . | . . . Time . | . . . Total Robot Build Rating . | . . . Part Schematics Acquired . | . . . Parts Built . | . . . Authchips . | . . . Time . | . . . Total Part Build Rating . | . . . Parts Repaired . | . . . Time . | . . . Parts Recycled . | . . . Recycled Matter . | . . . Retrieved Matter . | . . . Retrieved Components 1 | . . 1 Parts Scanalyzed . | . . . Part Schematics Acquired . | . . . Parts Damaged . | . . . Bothacking | -11 -10 -9 ------------ Run | Yrd Mat Mat Used RIF Installer . | . . . Robots Hacked . | . . . Non-combat . | . . . Combat . | . . . Robot Hacks Applied . | . . . Relay Couplers Released . | . . . Fabnet Peak Effective % . | . . . Robots Rewired . | . . . Allies Hacked . | . . . Hacks Repelled . | . . . Allies | -11 -10 -9 -------- Run | Yrd Mat Mat Total Allies . | . . . Largest Group . | . . . Highest-Rated Group . | . . . Highest-Rated Ally . | . . . Total Orders . | . . . Ally Attacks . | . . . Total Damage . | . . . Kills . | . . . Allies Corrupted . | . . . Allies Melted . | . . . Intel | -11 -10 -9 ------- Run | Yrd Mat Mat Robot Analysis Total . | . . . Derelict Logs Recovered . | . . . Drone Launches . | . . . Drone Recoveries . | . . . Exploration | -11 -10 -9 ------------- Run | Yrd Mat Mat Turns Passed 1185 | 48 453 684 Spaces Moved 582 | 41 241 300 Core 49 | 41 . 8 Treads . | . . . Legs 507 | . 241 266 Wheels . | . . . Hover . | . . . Flight 26 | . . 26 Fastest Speed 50 | 50 120 114 Average Speed 126 | 96 126 130 Slowest Speed 280 | 150 190 280 Overloaded Moves . | . . . Propulsion Burnouts . | . . . Robots Hopped . | . . . Cave-ins Triggered . | . . . Exploration Rate (%) 27 | 3 41 37 Regions Visited 2 Branch Regions . Pre-discovered Areas . | . . . Known Exits Taken . | . . . Unknown Exits Taken 2 | 1 1 . Scrap Searched . | . . . Spaces Dug . | . . . Terrain Destroyed 60 | . 10 50 Melee . | . . . Projectile . | . . . AOE 60 | . 10 50 Terrain Rammed . | . . . Walls Destroyed . | . . . Machines Disabled . | . . . Actions | -11 -10 -9 --------- Run | Yrd Mat Mat Total 874 | 50 321 503 Wait 120 | . 28 92 Move 580 | 40 240 300 Hop . | . . . Pick Up 28 | 7 7 14 Fast Attach 4 | . . 4 Attach 22 | 3 4 15 Detach 3 | . . 3 Swap 11 | . 4 7 Drop 5 | . 1 4 Fire 98 | . 37 61 Melee . | . . . Ram . | . . . Kick 3 | . . 3 Crush . | . . . Escape Stasis . | . . . Rewire . | . . . Trap . | . . . Miscellaneous . | . . . Route ------- -11/Scrapyard -10/Materials -9/Materials (discovered 1 exit: [*Min]) History --------- Turn | Location | Event 5 | -11/Scrapyard | Discovered new exit (range 13) 49 | -11/Scrapyard | Entered Materials 311 | -10/Materials | Build established: Mutant 481 | -10/Materials | Discovered new exit (range 8) 502 | -10/Materials | Entered another Materials area 502 | -9/Materials | Evolved 2 slots: Propulsion x1, Utility x1 694 | -9/Materials | Lost 4 parts (1p2n1w) 934 | -9/Materials | Lost 6 parts (1p2n3w) 1116 | -9/Materials | Discovered new exit (range 15) 1119 | -9/Materials | Core integrity fell below 50% 1167 | -9/Materials | Core integrity fell below 20% 1186 | -9/Materials | Destroyed by Y-45 Defender with Beam Rifle Last Messages --------------- 01169_ Imp. Ion Engine destroyed. 01169_ Aluminum Leg destroyed. 01170_ U-05 Engineer lays Concrete. 01170_ Kicked G-34 Mercenary. 01171_ U-05 Engineer lays Concrete. 01171_ Kicked G-34 Mercenary out of the way. 01172_ U-05 Engineer lays Concrete. 01173_ Kicked G-34 Mercenary out of the way. 01173_ U-05 Engineer builds a Wall. 01174_ U-05 Engineer lays Concrete. 01179_ U-05 Engineer builds a Wall. 01180_ U-05 Engineer lays Concrete. 01181_ Imp. Aluminum Leg destroyed. 01182_ U-05 Engineer builds a Wall. 01183_ Aluminum Leg destroyed. 01183_ Core Shielding destroyed. 01183_ U-05 Engineer lays Concrete. 01184_ U-05 Engineer builds a Wall. 01185_ U-05 Engineer lays Concrete. 01186_ U-05 Engineer builds a Wall. Map ----- +----------------------------------------------------+ | ??????????????????????????????????????????????? | | ??????????????????????????????????????????????? | | ??????????????????????????????????????????????? | | ??????????????????????????????????????????????? | | ??????????????????????????????????????????????? | | ??????????????????????????????????????????????? | | ??????????????????????????????????????????????? | | ??????????????????????????????????????????????? | | ??????????????????????????????????????????????? | | ?????????????????????????? ???????????????????? | | ?????????????????????????? ???????????????????? | | ?????????????????????????? ???????????????????? | | ?????????????????????????? ???????????????????? | | ?????????????????????????? ???????????????????? | | ?????????????????????????? ???????????????????? | | ?????????????????????????? ???????????????????? | | ?????????????????????????# #??????????????????? | | ?????????????????????????# #??????????????????? | | ?????????????????????????# #??????????????????? | | ?????????????????????????# #??????????????????? | | ?????????????????????????# #??????????????????? | | ?????????????????????????# #??????????????????? | | ???????????????????????### ###????????????????? | | ???????????????????????#[ s #????????????????? | | ???????????????????????# s #????????????????? | | ???????????????????????# @s +????????????????? | | ???????????????????????# #????????????????? | | ???????????????????????# #????????????????? | | ???????????????????????## s ##????????????????? | | ????????????????????????# ##????????????????? | | ????????????????????????# Y T#????????????????? | | ????????????????????????# g###########???????? | | ????????????????????????# # #???????? | | ????????????????????????# # #???????? | | ?????????????????########a u# #???????? | | ?????????????????# " #???????? | | ?????????????????# """"" #???????? | | ?????????????????# # """"" #???????? | | ?????????????????# #####u# """" #???????? | | ?????????????????# #??##u# """ #???????? | | ?????????????????# #??## ############???????? | | ################## #####+##?????????????????? | | | # #?????????????????? | | # #?????????????????? | | """ # """ #?????????????????? | | ######?????# """ + """ #?????????????????? | | " #????????# """ # """ #?????????????????? | | " #?######## # #?????????????????? | | " #?# # ########?????????????????? | | #?# # """ #????????????????????????? | +----------------------------------------------------+ Best States ------------- Heat Dissipation 28 Energy Generation 14 Energy Capacity 265 Matter Stores 300 Matter Capacity 300 Sight Range 16 Terrain Scan Density 10 ECM Strength 1 Core Shielding 20 Evasion (%) 55 Item Schematics ----------------- None Robot Schematics ------------------ None Fabricated ------------ Nothing Alien Tech Used ----------------- None Achievements -------------- None Challenges ------------ None Game ------ Seed OmegaShockPenetrator Manual? 0 Play Time 00:18:56 Cumulative 16.1 hours Start 2024.06.05 @ 23:55:30 End 2024.06.06 @ 00:11:35 Sessions 1 Manual Loads 0 Difficulty Rogue Special Mode None Game No. 26 Rogue 26 Adventurer 0 Explorer 0 Win Type - Total 0 Types 0/0/0/0/0/0/0/0/0 Lore% 13 Gallery% 23 Achievement% 17 Wizard Run 0 Options --------- Layout 2 ASCII 0 Keyboard 0 Movement Mouse Keybinds 0 Fullscreen 1 Font 48/Smallcaps Map View 50x44 Zoom Use 0% Tactical HUD 1 Map Filters NONE Filters NONE Steam 1 RUN: 48c123f2-53dd-45b6-bedf-6e34a5190dae